bitfinex/quotes_SOLUSD_20250417
["timestamp","ask_amount","ask_price","bid_price","bid_amount"]
[1744909570001,48.73755047,134.39,134.38,1e-08]
[1744909570399,26.37721725,134.35,134.34,0.063]
[1744909570595,73.29863415,134.35,134.34,0.063]
[1744909570823,43.63721725,134.35,134.34,0.063]
[1744909571501,73.29863415,134.35,134.34,0.063]
[1744909572017,73.29863415,134.35,134.26,31.3188169]
[1744909572018,19.07613357,134.34,134.26,9.10545217]
[1744909572198,48.73755047,134.34,134.28,29.6614169]
[1744909572396,0.28432314,134.34,134.31,29.6614169]
[1744909572609,36.193972,134.34,134.28,7.44707127]
[1744909572806,0.28432314,134.34,134.3,29.6614169]
[1744909573100,18.64964886,134.34,134.32,29.7244169]
[1744909573311,18.64964886,134.39,134.33,59.3858338]
[1744909573517,18.64964886,134.39,134.37,29.6614169]
[1744909574015,0.28432314,134.38,134.37,29.6614169]
[1744909574193,18.64964886,134.39,134.37,29.6614169]
[1744909574597,18.64964886,134.39,134.38,29.6614169]
[1744909575011,18.933972,134.39,134.38,29.6614169]
[1744909575216,237.9933,134.45,134.38,29.6614169]
[1744909575403,17.24,134.45,134.42,29.6614169]
[1744909575601,54.33746687,134.48,134.44,29.6614169]
[1744909575921,0.28432314,134.46,134.44,29.6614169]
[1744909576318,0.28432314,134.46,134.42,29.6614169]
[1744909576628,18.64964886,134.47,134.43,29.6614169]
[1744909576813,48.31106576,134.44,134.38,26.0]
[1744909577124,17.24,134.46,134.33,31.3854169]
[1744909577125,18.933972,134.38,134.33,31.3854169]
[1744909577298,18.933972,134.38,134.37,29.6614169]
[1744909577506,0.28432314,134.38,134.37,29.6614169]
[1744909579416,7.72481019,134.4,134.37,29.6614169]
[1744909579908,0.28432314,134.4,134.39,29.6614169]
[1744909580212,18.64964886,134.42,134.39,29.6614169]
[1744909580410,0.14216157,134.41,134.39,29.6614169]
[1744909581040,0.28432314,134.41,134.39,29.6614169]
[1744909581325,0.28432314,134.41,134.38,29.6614169]
[1744909581699,7.7245166,134.41,134.38,29.6614169]
[1744909581899,0.28432314,134.41,134.38,29.6614169]
[1744909582117,0.28432314,134.41,134.39,29.6614169]
[1744909583117,26.37408087,134.41,134.38,29.6614169]
[1744909583428,0.28432314,134.39,134.37,29.6614169]
[1744909583917,0.28432314,134.39,134.38,29.6614169]
[1744909584120,18.933972,134.39,134.37,29.6614169]
[1744909584499,0.28432314,134.39,134.37,29.6614169]
[1744909584702,26.37531224,134.39,134.36,29.6614169]
[1744909584902,0.28432314,134.37,134.34,29.6614169]
[1744909585332,0.28432314,134.37,134.33,29.7244169]
[1744909585799,18.933972,134.35,134.33,29.7244169]
[1744909586218,18.933972,134.35,134.33,0.063]
[1744909586524,18.933972,134.35,134.33,29.7244169]
[1744909587224,18.933972,134.35,134.33,0.063]
[1744909587625,48.5953889,134.35,134.33,0.063]
[1744909587827,48.5953889,134.34,134.33,0.063]
[1744909588127,56.03918821,134.34,134.33,0.063]
[1744909588529,26.37777131,134.34,134.33,0.063]
[1744909589111,73.42134978,134.34,134.33,0.063]
[1744909589317,19.07613357,134.33,134.28,0.03]
[1744909589512,43.29329759,134.34,134.3,29.6614169]
[1744909589725,0.28432314,134.31,134.29,29.6614169]
[1744909589927,7.72980659,134.31,134.28,29.6914169]
[1744909590307,7.72980659,134.31,134.28,0.03]
[1744909590508,0.28432314,134.29,134.28,0.03]
[1744909590720,48.5953889,134.29,134.28,0.03]
[1744909591319,65.97755047,134.29,134.28,0.03]
[1744909592328,73.42412132,134.29,134.28,0.03]
[1744909592830,26.38054285,134.29,134.28,0.03]
[1744909593031,18.79181043,134.29,134.28,0.03]
[1744909593338,17.24,134.32,134.28,29.6914169]
[1744909593527,17.24,134.32,134.29,29.6614169]
[1744909593723,17.24,134.32,134.28,55.6914169]
[1744909593724,0.28432314,134.3,134.28,55.6914169]
[1744909594124,18.64964886,134.31,134.28,55.6914169]
[1744909594325,18.64964886,134.31,134.28,26.03]
[1744909594520,0.14216157,134.3,134.28,26.03]
[1744909594727,0.28432314,134.3,134.28,0.03]
[1744909595235,0.28432314,134.3,134.28,29.6914169]
[1744909595634,0.28432314,134.3,134.28,0.03]
[1744909595828,18.933972,134.29,134.28,0.03]
[1744909596019,48.5953889,134.29,134.28,0.03]
[1744909596220,26.38054285,134.29,134.28,0.03]
[1744909596420,56.04195975,134.29,134.28,0.03]
[1744909597133,26.38054285,134.29,134.28,0.03]
[1744909597841,56.04195975,134.29,134.28,0.03]
[1744909598043,56.04195975,134.29,134.28,1e-08]
[1744909598044,56.18412132,134.29,134.28,1e-08]
[1744909598221,56.04195975,134.29,134.28,1e-08]
[1744909598748,0.42648471,134.28,134.27,0.03]
[1744909598933,48.73755047,134.28,134.27,0.03]
[1744909599516,48.73755047,134.28,134.26,0.063]
[1744909599715,65.97755047,134.27,134.26,0.063]
[1744909600335,73.42523051,134.27,134.26,0.063]
[1744909601513,73.42523051,134.27,134.24,0.063]
[1744909601514,0.42648471,134.26,134.24,0.063]
[1744909601838,48.5953889,134.25,134.24,0.063]
[1744909602138,48.73755047,134.25,134.24,0.063]
[1744909602518,48.5953889,134.25,134.24,0.063]
[1744909602719,48.73755047,134.25,134.24,0.063]
[1744909602952,48.73755047,134.25,134.24,1e-08]
[1744909603747,56.18634004,134.25,134.24,1e-08]
[1744909604153,0.14216157,134.23,134.2,0.03]
[1744909604352,48.5953889,134.21,134.2,0.03]
[1744909605654,56.04639851,134.21,134.2,0.03]
[1744909605970,19.07613357,134.2,134.19,0.03]
[1744909606266,48.73755047,134.2,134.19,0.03]
[1744909606764,48.5953889,134.2,134.19,0.03]
[1744909607069,18.64964886,134.2,134.19,0.03]
[1744909607533,18.933972,134.2,134.19,0.03]
[1744909607739,26.38553682,134.2,134.19,0.03]
[1744909608752,56.04695372,134.2,134.19,0.03]
[1744909608959,26.38553682,134.2,134.19,0.03]
[1744909609864,56.18911529,134.2,134.19,0.03]
[1744909610035,18.933972,134.19,134.12,29.6614169]
[1744909610364,7.44934445,134.24,134.17,29.6614169]
[1744909610548,18.64964886,134.23,134.21,29.6614169]
[1744909610934,0.28432314,134.22,134.21,29.6614169]
[1744909611444,18.64964886,134.23,134.21,29.6614169]
[1744909611754,18.64964886,134.23,134.22,29.6614169]
[1744909612052,26.38387142,134.23,134.22,29.6614169]
[1744909612354,26.38387142,134.23,134.18,33.45214637]
[1744909612528,26.38387142,134.23,134.22,29.6614169]
[1744909612947,26.24170985,134.23,134.22,29.6614169]
[1744909613561,26.38387142,134.23,134.22,29.6614169]
[1744909614444,0.28432314,134.23,134.22,29.6614169]
[1744909614654,26.09677426,134.28,134.22,37.11173183]
[1744909614838,26.09677426,134.28,134.24,29.6614169]
[1744909615039,44.71458778,134.28,134.24,29.6614169]
[1744909615758,44.71458778,134.28,134.21,33.45086312]
[1744909615759,74.37600468,134.28,134.23,29.6614169]
[1744909616261,0.28432314,134.27,134.24,29.6614169]
[1744909616432,0.28432314,134.25,134.21,26.0]
[1744909616639,0.28432314,134.25,134.23,29.6614169]
[1744909616834,0.28432314,134.25,134.24,29.6614169]
[1744909617141,18.64964886,134.24,134.23,29.6614169]
[1744909617459,0.28432314,134.23,134.22,29.6614169]
[1744909620256,7.4471254,134.28,134.23,1.6592]
[1744909620462,0.063,134.29,134.27,29.6614169]
[1744909620463,7.50973704,134.29,134.27,29.6614169]
[1744909620763,0.063,134.29,134.28,29.6614169]
[1744909621155,0.063,134.29,134.27,26.0]
[1744909621463,0.063,134.29,134.28,29.6614169]
[1744909621950,0.063,134.29,134.28,37.1085423]
[1744909622671,7.44349149,134.35,134.29,1.535]
[1744909622839,7.44349149,134.35,134.33,29.6614169]
[1744909623041,0.28432314,134.34,134.33,29.6614169]
[1744909623341,7.44349149,134.35,134.33,29.6614169]
[1744909624165,0.14216157,134.34,134.33,29.6614169]
[1744909624339,0.28432314,134.34,134.33,29.6614169]
[1744909625445,7.44349149,134.35,134.33,29.6614169]
[1744909625765,0.28432314,134.34,134.33,29.6614169]
[1744909625962,0.14216157,134.34,134.33,29.6614169]
[1744909626167,0.14216157,134.36,134.33,29.6614169]
[1744909626372,7.50524362,134.37,134.35,29.6614169]
[1744909626548,7.78956676,134.37,134.36,29.6614169]
[1744909626744,0.28432314,134.36,134.33,108.9]
[1744909626943,0.28432314,134.36,134.35,29.6614169]
[1744909627139,0.28432314,134.36,134.34,29.6614169]
[1744909627450,7.50524362,134.37,134.34,29.6614169]
[1744909627451,0.063,134.37,134.34,29.6614169]
[1744909628666,0.28432314,134.36,134.33,29.6614169]
[1744909629465,7.50528737,134.37,134.33,29.6614169]
[1744909630066,0.28432314,134.36,134.31,6.1732]
[1744909630369,0.28432314,134.36,134.33,29.6614169]
[1744909630667,0.28432314,134.34,134.33,29.6614169]
[1744909630867,0.063,134.37,134.33,55.6614169]
[1744909631050,7.78972085,134.37,134.36,29.6614169]
[1744909631466,7.78972085,134.37,134.35,29.6614169]
[1744909631759,7.78972085,134.37,134.34,29.6614169]
[1744909632146,7.78972085,134.37,134.33,26.0]
[1744909632347,7.78972085,134.37,134.34,29.6614169]
[1744909632860,7.78972085,134.37,134.35,29.6614169]
[1744909633047,7.64755928,134.37,134.36,29.6614169]
[1744909633254,7.78972085,134.37,134.36,29.6614169]
[1744909634372,0.28432314,134.36,134.35,29.6614169]
[1744909635059,7.72701441,134.36,134.35,29.6614169]
[1744909635671,0.28432314,134.36,134.35,29.6614169]
[1744909636049,7.72701441,134.36,134.35,29.6614169]
[1744909636455,7.72701441,134.36,134.32,82.9]
[1744909636456,26.37666327,134.36,134.32,82.9]
[1744909636651,0.28432314,134.34,134.33,29.6614169]
[1744909637166,7.72812245,134.34,134.33,29.6614169]
[1744909637473,0.28432314,134.32,134.31,26.0]
[1744909637677,0.28432314,134.32,134.3,29.6614169]
[1744909638453,0.28432314,134.32,134.31,29.6614169]
[1744909639151,7.72923082,134.32,134.31,29.6614169]
[1744909641164,7.44453394,134.33,134.31,29.6614169]
[1744909641365,7.72885708,134.33,134.32,29.6614169]
[1744909643086,7.44401422,134.34,134.32,29.6614169]
[1744909643283,26.09282046,134.36,134.33,29.6614169]
[1744909643582,7.4431716,134.36,134.35,29.6614169]
[1744909644381,0.14216157,134.35,134.34,29.6614169]
[1744909644590,0.28432314,134.35,134.34,29.6614169]
[1744909645270,26.37721725,134.35,134.32,82.9]
[1744909645463,26.37721725,134.35,134.33,29.6614169]
[1744909645865,0.28432314,134.33,134.32,29.6614169]
[1744909646177,0.28432314,134.33,134.31,29.6614169]
[1744909646561,0.28432314,134.33,134.32,29.6614169]
[1744909647381,0.28432314,134.34,134.32,29.6614169]
[1744909647578,0.28432314,134.34,134.29,108.9]
[1744909647778,0.28432314,134.34,134.33,29.6614169]
[1744909648984,7.72812245,134.34,134.33,29.6614169]
[1744909649170,0.34732314,134.37,134.33,18.59584777]
[1744909649482,7.78965767,134.37,134.36,18.59584777]
[1744909649797,7.6474961,134.37,134.35,18.59584777]
[1744909649993,0.14216157,134.36,134.34,18.59584777]
[1744909650469,0.14216157,134.36,134.35,18.59584777]
[1744909650876,26.2345017,134.36,134.35,18.59584777]
[1744909652863,0.14216157,134.35,134.34,18.59584777]
[1744909654680,0.063,134.37,134.34,18.59584777]
[1744909654862,0.063,134.37,134.36,18.59584777]
[1744909655057,0.34732314,134.37,134.36,18.59584777]
[1744909655379,0.063,134.37,134.36,18.59584777]
[1744909656273,0.063,134.37,134.36,101.63800934]
[1744909656474,0.063,134.37,134.36,82.9]
[1744909656667,0.063,134.37,134.36,101.49584777]
[1744909659785,0.063,134.37,134.36,18.59584777]
[1744909659985,0.063,134.37,134.35,18.59584777]
[1744909661164,37.59281977,134.37,134.32,18.59584777]
[1744909661364,18.996972,134.37,134.33,18.59584777]
[1744909661569,0.34732314,134.37,134.35,18.59584777]
[1744909661869,0.063,134.37,134.36,18.59584777]
[1744909667091,0.063,134.37,134.36,26.03853904]
[1744909667285,0.063,134.37,134.36,109.08070061]
[1744909667690,0.063,134.39,134.37,0.14216157]
[1744909667874,0.063,134.39,134.38,44.59584777]
[1744909668195,0.063,134.39,134.38,127.49584777]
[1744909669474,0.063,134.39,134.38,134.93743133]
[1744909670292,0.063,134.39,134.38,127.49584777]
[1744909670694,0.063,134.39,134.38,134.93743133]
[1744909671000,0.063,134.39,134.38,153.67544067]
[1744909671892,0.063,134.39,134.38,135.0795929]
[1744909675804,0.063,134.43,134.39,82.97916157]
[1744909676105,0.063,134.45,134.43,0.14216157]
[1744909676295,0.063,134.45,134.44,18.59584777]
[1744909676493,0.063,134.45,134.44,44.73800934]
[1744909676695,0.063,134.47,134.46,26.14216157]
[1744909676899,0.063,134.47,134.46,146.17085711]
[1744909677206,0.063,134.48,134.46,146.17085711]
[1744909677207,0.063,134.48,134.47,37.33385711]
[1744909677386,0.063,134.48,134.47,38.97935711]
[1744909677777,0.063,134.48,134.47,46.41596006]
[1744909678185,0.063,134.48,134.47,46.27379849]
[1744909678499,0.063,134.48,134.47,18.59584777]
[1744909678900,0.063,134.48,134.47,44.62829849]
[1744909681704,0.063,134.48,134.47,37.19169554]
[1744909682001,0.063,134.48,134.47,127.46529849]
[1744909682417,0.063,134.51,134.5,26.0]
[1744909682714,0.063,134.51,134.5,44.59584777]
[1744909682891,0.063,134.51,134.5,127.57500934]
[1744909683990,0.063,134.51,134.5,135.00995357]
[1744909684704,0.063,134.52,134.51,0.14216157]
[1744909684911,0.063,134.53,134.51,101.57500934]
[1744909685094,18.67964886,134.61,134.53,0.14216157]
[1744909685407,0.03,134.61,134.6,18.59584777]
[1744909685590,7.45886858,134.61,134.6,18.59584777]
[1744909685989,7.74319172,134.61,134.6,18.59584777]
[1744909686186,7.45886858,134.61,134.6,18.59584777]
[1744909686420,0.03,134.61,134.6,18.59584777]
[1744909686907,0.03,134.61,134.6,108.86226827]
[1744909687104,0.03,134.61,134.6,101.43284777]
[1744909688587,0.03,134.61,134.6,108.86226827]
[1744909688789,0.03,134.61,134.6,101.43284777]
[1744909689407,0.03,134.61,134.6,120.02869554]
[1744909689597,0.03,134.61,134.6,109.00442984]
[1744909689896,0.03,134.61,134.6,127.60027761]
[1744909690093,7.56795495,134.67,134.6,127.60027761]
[1744909690310,18.64964886,134.68,134.66,18.59584777]
[1744909690611,26.07482187,134.68,134.66,18.59584777]
[1744909691009,0.28432314,134.67,134.66,18.59584777]
[1744909691324,0.28432314,134.67,134.63,26.0]
[1744909691488,7.4261102,134.66,134.63,108.837]
[1744909691808,7.4261102,134.66,134.61,26.16667023]
[1744909691809,18.933972,134.65,134.62,18.59584777]
[1744909692024,0.28432314,134.65,134.62,18.59584777]
[1744909692331,18.933972,134.65,134.63,18.59584777]
[1744909692621,18.933972,134.65,134.62,18.59584777]
[1744909693099,18.933972,134.65,134.63,18.59584777]
[1744909693418,26.07465628,134.68,134.64,18.59584777]
[1744909693720,0.28432314,134.67,134.65,18.59584777]
[1744909694290,26.35993364,134.67,134.65,18.59584777]
[1744909694619,0.28432314,134.65,134.63,18.59584777]
[1744909694817,0.28432314,134.65,134.64,18.59584777]
[1744909695025,0.28432314,134.66,134.64,18.59584777]
[1744909695910,7.42596164,134.67,134.65,18.59584777]
[1744909696306,7.42596164,134.67,134.62,0.14216157]
[1744909696622,0.28432314,134.66,134.65,18.59584777]
[1744909696825,7.42596164,134.67,134.65,18.59584777]
[1744909697031,7.42596164,134.67,134.62,82.837]
[1744909697032,7.71028478,134.67,134.66,18.59584777]
[1744909697327,0.28432314,134.67,134.65,18.59584777]
[1744909697499,0.28432314,134.67,134.66,18.59584777]
[1744909697695,0.03,134.69,134.66,18.59584777]
[1744909697900,0.03,134.69,134.67,18.59584777]
[1744909698322,7.73881429,134.69,134.65,26.0]
[1744909698525,7.59665272,134.69,134.66,18.59584777]
[1744909699006,7.59665272,134.69,134.67,18.59584777]
[1744909699339,0.31432314,134.69,134.67,18.59584777]
[1744909699491,0.31432314,134.69,134.66,26.0]
[1744909699834,0.31432314,134.69,134.66,44.59584777]
[1744909700617,0.03,134.69,134.67,18.59584777]
[1744909700820,0.03,134.69,134.66,44.59584777]
[1744909701191,7.4546789,134.69,134.66,44.59584777]
[1744909701405,0.03,134.69,134.66,26.0]
[1744909701794,7.454472,134.69,134.66,26.0]
[1744909703341,18.933972,134.68,134.66,26.0]
[1744909704029,0.31432314,134.69,134.67,18.59584777]
[1744909704426,0.31432314,134.69,134.66,44.59584777]
[1744909704605,0.31432314,134.69,134.64,7.42705529]
[1744909704930,0.31432314,134.69,134.66,26.0]
[1744909705305,7.73884072,134.69,134.66,26.0]
[1744909707338,26.33468849,134.69,134.66,26.0]
[1744909707911,7.73884072,134.69,134.66,44.59584777]
[1744909708205,0.03,134.69,134.67,18.59584777]
[1744909708425,0.03,134.69,134.68,18.73800934]
[1744909709618,0.03,134.69,134.68,26.16301676]
[1744909711222,0.03,134.69,134.66,51.0615755]
[1744909711223,0.03,134.69,134.66,26.0]
[1744909711435,0.03,134.69,134.67,18.59584777]
[1744909712342,0.03,134.69,134.66,26.0]
[1744909712524,0.03,134.69,134.67,18.59584777]
[1744909713342,0.03,134.69,134.66,26.0]
[1744909713641,0.03,134.69,134.67,18.59584777]
[1744909714941,0.03,134.69,134.68,18.59584777]
[1744909717247,0.03,134.69,134.66,26.0]
[1744909717451,0.03,134.69,134.67,18.59584777]
[1744909717755,18.91017091,134.69,134.65,17.1]
[1744909717917,0.31432314,134.69,134.66,18.59584777]
[1744909719053,7.73878531,134.69,134.64,33.42709514]
[1744909719243,7.73878531,134.69,134.66,18.59584777]
[1744909720052,0.03,134.69,134.67,18.59584777]
[1744909721858,0.03,134.69,134.68,18.59584777]
[1744909723444,0.03,134.69,134.66,18.59584777]
[1744909723620,0.03,134.69,134.68,18.59584777]
[1744909723816,0.03,134.69,134.68,26.02085519]
[1744909724013,0.03,134.69,134.68,44.75886453]
[1744909724217,0.03,134.69,134.68,26.16301676]
[1744909726757,0.03,134.69,134.68,52.16301676]
[1744909726938,0.03,134.69,134.68,70.75886453]
[1744909727357,0.03,134.69,134.68,52.16301676]
[1744909727661,0.03,134.69,134.68,70.75886453]
[1744909727829,0.03,134.69,134.68,72.26526453]
[1744909728354,0.063,134.73,134.71,26.0]
[1744909728541,0.063,134.73,134.72,18.73800934]
[1744909730560,0.063,134.73,134.72,26.16081219]
[1744909732459,0.063,134.73,134.72,26.01865062]
[1744909732635,0.063,134.73,134.71,44.59584777]
[1744909732838,0.063,134.73,134.72,26.0]
[1744909733045,0.063,134.73,134.72,44.59584777]
[1744909733353,0.063,134.73,134.72,26.0]
[1744909733957,0.063,134.73,134.72,44.59584777]
[1744909734554,0.063,134.73,134.72,52.16081219]
[1744909735344,0.063,134.75,134.73,0.14216157]
[1744909735543,0.063,134.75,134.74,18.59584777]
[1744909736256,0.063,134.75,134.74,61.0718135]
[1744909736442,0.03,134.76,134.74,61.0718135]
[1744909736443,0.03,134.76,134.75,63.33385711]
[1744909736642,0.03,134.76,134.75,70.75500738]
[1744909737942,0.03,134.78,134.77,0.14216157]
[1744909738148,0.03,134.78,134.77,18.73800934]
[1744909738539,0.03,134.78,134.77,26.15805831]
[1744909740259,0.03,134.78,134.76,24.50038507]
[1744909740473,0.03,134.78,134.77,18.59584777]
[1744909740936,0.03,134.78,134.77,18.73800934]
[1744909741137,0.03,134.78,134.77,44.73800934]
[1744909741546,0.03,134.78,134.77,52.15805831]
[1744909742672,1e-08,134.78,134.77,127.64470717]
[1744909742839,1e-08,134.78,134.77,135.69240717]
[1744909744066,33.16462509,134.86,134.81,26.0]
[1744909744268,33.16462509,134.86,134.81,127.43284777]
[1744909744571,18.59584777,134.85,134.81,127.43284777]
[1744909745143,18.59584777,134.85,134.81,108.837]
[1744909745665,18.59584777,134.85,134.81,134.85055604]
[1744909745868,18.53478743,134.89,134.82,18.73800934]
[1744909746040,18.59584777,134.85,134.82,82.97916157]
[1744909746674,0.28432314,134.88,134.82,82.97916157]
[1744909746970,7.69832076,134.88,134.84,18.59584777]
[1744909747145,18.59584777,134.89,134.85,18.73800934]
[1744909747345,26.0089475,134.9,134.85,18.73800934]
[1744909747556,26.00956511,134.89,134.85,0.14216157]
[1744909747752,7.41308922,134.9,134.85,18.73800934]
[1744909747954,18.59584777,134.89,134.85,18.73800934]
[1744909748349,18.59584777,134.89,134.84,134.8488453]
[1744909748548,18.59584777,134.89,134.85,0.14216157]
[1744909749051,18.59584777,134.89,134.85,18.73800934]
[1744909749675,6.4571,134.94,134.88,18.73800934]
[1744909749853,7.44186462,134.92,134.88,101.57500934]
[1744909750168,7.44186462,134.92,134.89,18.59584777]
[1744909750372,18.59584777,134.9,134.88,82.837]
[1744909750588,18.59584777,134.89,134.88,82.837]
[1744909750872,18.59584777,134.9,134.86,17.08]
[1744909751069,7.72618776,134.92,134.86,18.59584777]
[1744909751379,18.59584777,134.9,134.86,18.59584777]
[1744909751882,26.00929576,134.89,134.85,0.14216157]
[1744909752068,7.41344799,134.89,134.85,101.57500934]
[1744909752375,0.28432314,134.91,134.87,18.59584777]
[1744909752543,18.88017091,134.91,134.86,18.59584777]
[1744909753058,7.44204146,134.92,134.87,18.59584777]
[1744909753265,26.03788923,134.92,134.88,18.59584777]
[1744909753574,18.59584777,134.91,134.87,101.43284777]
[1744909753867,7.44204146,134.92,134.87,101.43284777]
[1744909754052,26.03788923,134.92,134.87,101.43284777]
[1744909754771,7.44204146,134.92,134.87,101.43284777]
[1744909755066,26.03788923,134.92,134.87,101.43284777]
[1744909755266,0.03,134.92,134.89,18.59584777]
[1744909755573,0.03,134.92,134.9,18.59584777]
[1744909755773,0.03,134.92,134.9,101.43284777]
[1744909756066,0.03,134.92,134.91,18.59584777]
[1744909756274,0.03,134.92,134.91,101.57500934]
[1744909756449,0.03,134.92,134.91,101.43284777]
[1744909756965,0.03,134.92,134.9,44.59584777]
[1744909757367,0.03,134.92,134.89,99.897]
[1744909757680,0.03,134.92,134.89,118.49284777]
[1744909757884,0.03,134.92,134.89,99.897]
[1744909758106,0.17216157,134.92,134.89,99.897]
[1744909758877,0.17216157,134.92,134.89,118.49284777]
[1744909759471,7.58421132,134.92,134.89,118.49284777]
[1744909759671,7.58421132,134.92,134.9,18.59584777]
[1744909759978,0.14216157,134.91,134.89,17.06]
[1744909760975,7.55464764,134.91,134.89,17.06]
[1744909761986,7.55464764,134.91,134.87,18.59584777]
[1744909762275,7.55464764,134.91,134.88,18.59584777]
[1744909762486,0.14216157,134.91,134.88,18.59584777]
[1744909762657,7.55476849,134.91,134.89,18.59584777]
[1744909762861,7.55476849,134.91,134.88,18.59584777]
[1744909763278,0.14216157,134.9,134.86,26.0]
[1744909763582,0.14216157,134.9,134.87,18.59584777]
[1744909763885,0.14216157,134.9,134.88,18.59584777]
[1744909764092,7.44203507,134.92,134.89,18.59584777]
[1744909764272,0.03,134.92,134.9,18.59584777]
[1744909764668,0.03,134.92,134.91,18.59584777]
[1744909766466,0.03,134.92,134.89,18.59584777]
[1744909767589,7.44179958,134.92,134.89,18.59584777]
[1744909768088,7.44179958,134.92,134.88,18.59584777]
[1744909768389,7.44179958,134.92,134.89,18.59584777]
[1744909768889,0.28432314,134.91,134.88,18.59584777]
[1744909769287,0.28432314,134.89,134.87,82.837]
[1744909771777,0.28432314,134.91,134.88,18.59584777]
[1744909773475,0.03,134.92,134.88,44.59584777]
[1744909773790,0.31432314,134.92,134.88,18.59584777]
[1744909774093,0.31432314,134.92,134.89,18.59584777]
[1744909774492,0.03,134.92,134.89,18.59584777]
[1744909774792,0.03,134.92,134.9,18.59584777]
[1744909774988,0.03,134.92,134.89,18.59584777]
[1744909775189,0.28432314,134.91,134.89,18.59584777]
[1744909775878,0.03,134.92,134.9,18.59584777]
[1744909776596,0.03,134.92,134.91,18.59584777]
[1744909777403,0.03,134.92,134.89,7.41300693]
[1744909777582,0.03,134.92,134.91,18.59584777]
[1744909778489,0.03,134.92,134.91,44.59584777]
[1744909778989,0.03,134.92,134.9,18.59584777]
[1744909779198,0.03,134.92,134.91,18.59584777]
[1744909779898,0.03,134.92,134.9,18.59584777]
[1744909780115,0.03,134.92,134.89,108.837]
[1744909780300,0.03,134.92,134.91,18.59584777]
[1744909780800,0.31432314,134.92,134.9,18.59584777]
[1744909781801,0.03,134.92,134.91,44.59584777]
[1744909782000,0.03,134.92,134.91,52.15035831]
[1744909784092,0.03,134.92,134.91,52.00819674]
[1744909784309,0.03,134.92,134.91,52.15035831]
[1744909784512,0.03,134.92,134.91,26.0]
[1744909784714,0.03,134.92,134.91,44.59584777]
[1744909785484,0.03,134.92,134.91,18.59584777]
[1744909787390,0.03,134.92,134.87,20.06296324]
[1744909787391,0.03,134.92,134.87,1.5269]
[1744909787590,0.03,134.92,134.89,18.59584777]
[1744909788611,0.03,134.92,134.89,26.00925734]
[1744909788910,0.03,134.92,134.89,18.59584777]
[1744909789208,37.55981977,134.92,134.88,26.0]
[1744909789505,18.963972,134.92,134.88,44.59584777]
[1744909790005,18.59584777,134.91,134.87,101.43284777]
[1744909790206,0.28432314,134.87,134.83,82.837]
[1744909790407,18.59584777,134.86,134.82,231.06]
[1744909790625,0.28432314,134.86,134.83,18.59584777]
[1744909790792,0.28432314,134.89,134.84,18.59584777]
[1744909791107,0.28432314,134.87,134.84,18.59584777]
[1744909791887,18.88017091,134.87,134.83,18.59584777]
[1744909792107,18.59584777,134.86,134.82,44.59584777]
[1744909792310,18.59584777,134.86,134.82,52.01302023]
[1744909792495,18.59584777,134.86,134.82,44.59584777]
[1744909792708,18.88017091,134.87,134.83,18.59584777]
[1744909793592,18.59584777,134.9,134.85,18.59584777]
[1744909793796,18.79181043,134.9,134.86,18.59584777]
[1744909794008,0.03,134.98,134.9,1.5636]
[1744909794209,0.03,134.98,134.94,26.0]
[1744909794513,0.03,134.98,134.97,18.59584777]
[1744909794889,0.03,134.98,134.97,44.59584777]
[1744909795306,0.03,134.98,134.97,29.47797872]
[1744909796194,0.03,134.98,134.97,36.88703258]
[1744909796606,0.03,134.98,134.97,29.47797872]
[1744909796815,0.03,134.98,134.96,7.40946845]
[1744909796816,0.03,134.98,134.96,18.91923902]
[1744909797004,0.03,134.98,134.96,40.98774929]
[1744909797226,0.03,134.98,134.96,18.91928845]
[1744909797527,0.03,134.98,134.97,29.47797872]
[1744909798307,0.03,134.98,134.94,58.04774929]
[1744909798504,0.03,134.98,134.95,29.47797872]
[1744909799818,0.03,134.98,134.96,29.47797872]
[1744909800325,0.03,134.98,134.97,29.47797872]
[1744909801320,0.03,134.98,134.96,29.47797872]
[1744909801627,0.03,134.98,134.97,29.47797872]
[1744909802002,0.03,134.98,134.94,35.98045751]
[1744909802198,0.03,134.98,134.97,29.47797872]